[Event "HSK GM Invitational 2022"]
[Site "Hamburg"]
[Date "2022.05.20"]
[Round "1.1"]
[White "Souleidis, Georgios"]
[Black "Prohaszka, Peter"]
[Result "1/2-1/2"]
[ECO "B12"]
[WhiteElo "2430"]
[BlackElo "2579"]
[Annotator "TA"]
[PlyCount "100"]
[EventDate "2022.05.20"]
[EventType "tourn"]
[EventCountry "GER"]
[SourceTitle "playchess.com"]
[Source "ChessBase"]
[SourceQuality "1"]
[TimeControl "40/5400+30:1800+30"]

{[%evp 11,100,0,16,17,20,25,24,12,13,12,12,12,14,12,28,9,34,-10,-16,-13,-15,-13,-12,-13,-14,-20,0,0,0,0,0,0,0,0,0,-10,-15,-15,0,-19,-13,-20,0,-16,-14,-22,-33,-32,0,0,0,0,0,0,0,0,0,0,0,0,0,0,0,0,0,0,0,0,0,0,0,0,0,0,0,0,0,0,0,0,0,0,0,0,0,0,0,0,0,0,0]} 1. e4 {[%emt 0:00:18]} c6 {[%emt 0:00:04]} 2. d4 {[%emt 0:00:05]} d5 {[%emt 0:00:03]} 3. e5 {[%emt 0:00:31]} Bf5 {[%emt 0:00:07]} 4. h4 {[%emt 0:00:14]} h5 {[%emt 0:00:04]} 5. c4 {[%emt 0:00:21]} e6 {[%emt 0:00:20]} 6. Nc3 {[%emt 0:00:06]} Be7 {[%emt 0:06:11]} 7. Bd3 {[%emt 0:05:30] B12: Caro-Kann: Advance Variation.} Bxd3 {[%emt 0:41:44]} 8. Qxd3 {[%emt 0:00:09]} Nh6 {[%emt 0:00:15]} 9. cxd5 {[%emt 0:03:04] White has an edge.} cxd5 {[%emt 0:00:36]} 10. Bxh6 {[%emt 0:04:04]} Rxh6 {[%emt 0:00:22]} 11. Nf3 {[%emt 0:00:08]} Nc6 {[%emt 0:01:12]} 12. Rc1 {[%emt 0:02:10] [#]} a6 $146 {[%emt 0:08:10]} ({Predecessor:} 12... Kf8 13. g3 g6 14. O-O Kg7 15. Na4 Rh8 16. Nc5 Bxc5 17. Rxc5 Qd7 18. Rfc1 Rhc8 {1-0 (33) Dubov,D (2683)-Artemiev,V (2731) Wijk aan Zee 2020}) 13. g3 {[%emt 0:08:25]} Rc8 {[%emt 0:00:44]} 14. O-O {[%emt 0:32:07]} g5 {[%emt 0:15:25]} 15. Qe3 {[%emt 0:12:00][%cal Rf3g5]} Rg6 {[%emt 0:00:49][%cal Rg5h4]} 16. hxg5 {[%emt 0:01:52]} Bxg5 {[%emt 0:00:22]} 17. Nxg5 {[%emt 0:00:09]} Qxg5 {[%emt 0:00:38]} 18. Ne2 {[%emt 0:09:44]} Qxe3 {[%emt 0:02:11]} 19. fxe3 {[%emt 0:00:06]} h4 {[%emt 0:01:17]} 20. Kg2 {[%emt 0:05:26]} Ke7 {[%emt 0:05:07]} 21. b3 {[%emt 0:01:04]} hxg3 {[%emt 0:02:13]} 22. Rh1 {[%emt 0:02:59]} Rgg8 {[%emt 0:04:08]} 23. Rc3 {[%emt 0:04:49]} Nb4 {[%emt 0:06:43]} 24. Rhc1 $1 {[%emt 0:00:06]} Kd7 {[%emt 0:00:45]} 25. a3 {[%emt 0:00:06]} Nc6 {[%emt 0:00:42]} 26. Rf1 {[%emt 0:03:17]} Ke7 {[%emt 0:00:06]} 27. b4 {[%emt 0:00:52]} Na7 {[%emt 0:00:46]} 28. Rfc1 {[%emt 0:02:14]} Kd7 {[%emt 0:01:00] Against Rc7+} 29. Rxc8 {[%emt 0:01:10]} Rxc8 {[%emt 0:00:48]} 30. Rxc8 {[%emt 0:00:13] The position is equal.} Nxc8 {[%emt 0:00:39]} 31. Kxg3 $15 {[%emt 0:01:49][%mdl 4096] Endgame KN-KN} (31. a4 {looks sharper.} Nb6 32. Nc3 Nc4 33. Nd1) 31... Nb6 {[%emt 0:00:06] ...Nc4 is the strong threat.} 32. Kf3 $1 {[%emt 0:00:36]} Nc4 {[%emt 0:01:26]} 33. a4 {[%emt 0:00:01]} Nd2+ {[%emt 0:00:34]} 34. Kf2 {[%emt 0:00:53]} Ne4+ {[%emt 0:00:57]} 35. Ke1 {[%emt 0:00:18]} Ke7 {[%emt 0:00:13]} 36. Nf4 {[%emt 0:00:56]} b6 {[%emt 0:00:53]} 37. Nd3 {[%emt 0:00:19]} Kd7 {[%emt 0:00:19]} 38. Nb2 {[%emt 0:00:40]} Kc6 {[%emt 0:00:43]} 39. Kd1 {[%emt 0:00:22]} a5 {[%emt 0:00:25]} 40. bxa5 {[%emt 0:00:26]} bxa5 {[%emt 0:00:30]} 41. Kc2 $1 {[%emt 0:30:25]} Ng3 {[%emt 0:30:51]} 42. Kd2 {[%emt 0:00:00]} Ne4+ {[%emt 0:00:00]} 43. Kc2 {[%emt 0:00:00]} f6 {[%emt 0:00:00]} 44. exf6 {[%emt 0:00:00]} Nxf6 {[%emt 0:00:00]} 45. Nd3 {[%emt 0:00:00]} Ne4 {[%emt 0:00:00]} 46. Ne5+ $1 {[%emt 0:00:00]} Kc7 {[%emt 0:00:00]} 47. Nd3 {[%emt 0:00:00]} Kd6 {[%emt 0:00:00]} 48. Nc1 {[%emt 0:00:00]} Kc6 {[%emt 0:00:00]} 49. Nb3 {[%emt 0:00:00]} Kb6 {[%emt 0:00:00]} 50. Kd3 {[%emt 0:00:00]} Ka6 {[%emt 0:05:02] A balanced but interesting game.  Weighted Error Value: White=0.03 (flawless) /Black=0.04 (flawless)} 1/2-1/2

[Event "HSK GM Invitational 2022"]
[Site "Hamburg"]
[Date "2022.05.20"]
[Round "1.2"]
[White "Trent, Lawrence"]
[Black "Mendonca, Leon Luke"]
[Result "1/2-1/2"]
[ECO "B11"]
[WhiteElo "2398"]
[BlackElo "2551"]
[Annotator "TA"]
[PlyCount "112"]
[EventDate "2022.05.20"]
[EventType "tourn"]
[EventCountry "GER"]
[SourceTitle "playchess.com"]
[Source "ChessBase"]
[SourceQuality "1"]
[TimeControl "40/5400+30:1800+30"]

{[%evp 11,112,-40,-60,-58,-49,-72,0,0,0,-12,0,-17,-17,-17,0,0,0,0,0,0,0,0,-4,-17,0,-23,-25,-37,-46,-71,-69,-117,-122,-113,-120,-121,-99,-100,-100,-100,-101,-110,-96,-99,-91,-92,-84,-84,-84,-91,-84,-91,-86,-86,-86,-86,-86,-86,0,-86,-84,-84,-84,-93,-84,-93,-93,-98,-98,-103,-83,-83,-84,-84,-57,-91,-84,-81,0,-98,-94,-92,-71,-114,-74,-81,-79,-100,-100,-100,-88,-116,-29,-29,-18,-18,-20,-26,-10,-6,0,0,0]} 1. e4 {[%emt 0:00:38]} c6 {[%emt 0:00:55]} 2. Nc3 {[%emt 0:00:49]} d5 {[%emt 0:00:14]} 3. Qf3 {[%emt 0:00:05]} dxe4 {[%emt 0:02:30]} 4. Nxe4 {[%emt 0:01:11]} Nd7 {[%emt 0:01:16]} 5. d4 {[%emt 0:00:05]} Ngf6 {[%emt 0:01:22]} 6. Bc4 {[%emt 0:00:06]} Nb6 $1 {[%emt 0:17:44][%csl LRc4,LRd4]} 7. Bd3 {[%emt 0:00:01] B11: Caro-Kann: Two Knights Variation.} ({Avoid the trap} 7. Bxf7+ $2 Kxf7 8. Ne2 Qd5 9. Ng5+ Kg8 10. Qxd5+ cxd5 $19) 7... Qxd4 {[%emt 0:01:46]} 8. Ne2 {[%emt 0:00:01]} Qd7 {[%emt 0:08:07]} (8... Qe5 $17) 9. Nxf6+ $1 $11 {[%emt 0:12:14]} exf6 {[%emt 0:12:34]} 10. O-O {[%emt 0:14:17] [#]} Qg4 $146 {[%emt 0:04:03]} (10... Bc5 {is interesting.} 11. Ng3 Qg4 12. Re1+ Kf8) ({Predecessor:} 10... Bd6 11. Ng3 O-O 12. Rd1 Qg4 13. Bxh7+ {½-½ (13) Destruels Moreno,F (2307)-Krebs,J (2333) ICCF email 2009}) 11. Qe3+ {[%emt 0:00:10]} Be6 {[%emt 0:01:34]} 12. h3 {[%emt 0:03:46]} Qb4 {[%emt 0:06:11]} 13. Nf4 {[%emt 0:00:43]} Nd5 {[%emt 0:07:34]} 14. Nxd5 {[%emt 0:01:03]} cxd5 {[%emt 0:00:04]} 15. Bd2 {[%emt 0:00:04]} Qb6 {[%emt 0:05:24]} 16. Qxb6 {[%emt 0:15:05]} axb6 {[%emt 0:00:39]} 17. Bb5+ {[%emt 0:00:05]} Kd8 {[%emt 0:01:33]} 18. Rfd1 {[%emt 0:11:39]} Bc5 {[%emt 0:01:45]} 19. b4 {[%emt 0:03:33]} Bd6 {[%emt 0:03:02]} 20. c4 {[%emt 0:04:35]} d4 {[%emt 0:09:54]} (20... dxc4 $2 21. Bf4 $18) (20... Be5 {feels hotter.} 21. Rac1 Rxa2 22. cxd5 Bd7) 21. Bf4 {[%emt 0:22:26]} Bxb4 $17 {[%emt 0:02:51]} 22. Rxd4+ {[%emt 0:00:02]} Ke7 {[%emt 0:01:16] And now ...Bc3 would win.} 23. Rad1 {[%emt 0:00:07]} Rhd8 {[%emt 0:03:08]} 24. Rxd8 {[%emt 0:00:21]} Rxd8 {[%emt 0:00:04]} 25. Rxd8 {[%emt 0:00:03]} Kxd8 {[%emt 0:00:05][%mdl 4096] Endgame KBB-KBB} 26. h4 {[%emt 0:00:19]} h6 {[%emt 0:01:20]} 27. Kf1 {[%emt 0:01:18]} g5 {[%emt 0:01:50]} 28. Bc1 {[%emt 0:01:39]} Bf5 {[%emt 0:00:53]} 29. Ke2 {[%emt 0:01:03]} Ke7 {[%emt 0:01:19]} 30. g3 {[%emt 0:04:48]} Bc5 {[%emt 0:00:35]} 31. Bd2 {[%emt 0:01:08]} Bg4+ {[%emt 0:02:35]} 32. f3 {[%emt 0:01:33]} Be6 {[%emt 0:00:23]} 33. Bc3 {[%emt 0:00:39]} Bd6 {[%emt 0:01:29]} 34. Kf2 {[%emt 0:00:14]} Bc5+ {[%emt 0:00:17]} 35. Ke2 {[%emt 0:00:07]} Bh3 {[%emt 0:00:38]} 36. Ba4 {[%emt 0:00:44]} Bf5 {[%emt 0:00:38]} 37. Bb5 {[%emt 0:01:10]} Ke6 {[%emt 0:00:15]} 38. a4 {[%emt 0:00:37]} Bc2 {[%emt 0:01:02]} 39. Kd2 {[%emt 0:00:55]} Bg6 {[%emt 0:00:35]} 40. Ke2 {[%emt 0:00:17] Prevents Bf2.} Bd6 {[%emt 0:00:32]} 41. Be1 {[%emt 0:03:57]} Bf5 {[%emt 0:09:59]} 42. Bf2 {[%emt 0:02:06]} Bc7 {[%emt 0:05:51]} 43. Be1 {[%emt 0:00:38]} Ke7 {[%emt 0:01:26]} 44. Bf2 {[%emt 0:00:40]} Ke6 {[%emt 0:02:14]} 45. Be1 {[%emt 0:00:09]} Bc2 {[%emt 0:00:22]} 46. Bf2 {[%emt 0:02:09]} Bb3 {[%emt 0:00:25]} 47. Be1 {[%emt 0:04:05]} Kf5 {[%emt 0:02:25]} 48. Bf2 {[%emt 0:14:47]} Kg6 {[%emt 0:01:11]} 49. Be1 {[%emt 0:01:07]} f5 {[%emt 0:03:14]} 50. hxg5 {[%emt 0:00:52]} Kxg5 {[%emt 0:01:00]} 51. Bd2+ {[%emt 0:04:02]} Kg6 {[%emt 0:04:13]} (51... f4 $17 52. Kf1 Kf5) 52. Kf2 $11 {[%emt 0:01:31]} f4 {[%emt 0:00:42]} 53. gxf4 {[%emt 0:00:26]} h5 {[%emt 0:02:57][%cal Bh6h5,Bh5h4][%mdl 32]} 54. Be3 {[%emt 0:00:07]} h4 {[%emt 0:00:38]} 55. Kg2 {[%emt 0:00:08]} Bc2 {[%emt 0:00:44]} 56. Bd7 {[%emt 0:00:51]} Bf5 {[%emt 0:00:41] Weighted Error Value: White=0.05 (flawless) /Black=0.15 (very precise)} 1/2-1/2

[Event "HSK GM Invitational 2022"]
[Site "Hamburg"]
[Date "2022.05.20"]
[Round "1.3"]
[White "Colpe, Malte"]
[Black "Woelk, Tom-Frederic"]
[Result "1-0"]
[ECO "D35"]
[WhiteElo "2348"]
[BlackElo "2315"]
[Annotator "TA"]
[PlyCount "79"]
[EventDate "2022.05.20"]
[EventType "tourn"]
[EventCountry "GER"]
[SourceTitle "playchess.com"]
[Source "ChessBase"]
[SourceQuality "1"]
[TimeControl "40/5400+30:1800+30"]

{[%evp 18,79,20,21,25,22,27,29,22,23,37,9,15,-30,-44,-21,-29,-33,-22,-27,-24,-42,-41,-62,14,13,50,-78,-57,-76,-70,-72,-62,-87,-85,-100,25,25,29,21,21,23,178,0,197,219,202,215,344,340,328,85,99,81,225,236,305,294,12838,12838,29990,29991,29993,29994]} 1. d4 {[%emt 0:00:03]} d5 {[%emt 0:00:15]} 2. c4 {[%emt 0:00:06]} e6 {[%emt 0:00:08]} 3. Nc3 {[%emt 0:00:56]} Nf6 {[%emt 0:00:15]} 4. Nf3 {[%emt 0:01:50]} Nbd7 {[%emt 0:01:55]} 5. cxd5 {[%emt 0:05:51]} exd5 {[%emt 0:00:55]} 6. Bf4 {[%emt 0:01:08]} c6 {[%emt 0:02:20]} 7. h3 {[%emt 0:02:21]} Be7 {[%emt 0:09:06]} 8. e3 {[%emt 0:00:22]} O-O {[%emt 0:00:23]} 9. Bd3 {[%emt 0:00:25]} Re8 {[%emt 0:01:02]} 10. Qc2 {[%emt 0:00:16]} a5 {[%emt 0:05:17] D35: Queen's Gambit Declined: Exchange Variation.} 11. O-O {[%emt 0:04:34][%cal Oc3b5]} Nf8 {[%emt 0:16:44]} 12. Ne5 {[%emt 0:08:52] [#]} Bd6 $146 {[%emt 0:04:18] White has an edge.} ({Predecessor:} 12... Nh5 13. Bh2 g6 14. Rad1 f6 15. Nf3 f5 16. Ne5 Bd6 17. Kh1 Be6 18. f3 Qg5 {1-0 (36) Zhou,J (2608)-Zhang,Z (1615) Harbin 2019}) 13. Bh2 {[%emt 0:01:49]} N6d7 {[%emt 0:08:07]} 14. f4 {[%emt 0:23:57]} f6 {[%emt 0:10:33]} 15. Ng4 {[%emt 0:04:21]} h5 {[%emt 0:05:27]} 16. f5 {[%emt 0:04:23]} Nb6 {[%emt 0:04:06]} 17. Bxd6 {[%emt 0:00:59]} Qxd6 {[%emt 0:00:03]} 18. Nh2 {[%emt 0:00:39]} Rxe3 {[%emt 0:00:56]} 19. Ne2 {[%emt 0:06:34]} Bd7 {[%emt 0:02:07]} 20. Nf4 {[%emt 0:03:32]} Be8 {[%emt 0:02:46]} ({Black should play} 20... Qb4 $1 $15 21. Nf3 Nc4) 21. Qf2 $11 {[%emt 0:03:40][%mdl 1024] White has compensation.} Re7 {[%emt 0:02:31]} 22. Qh4 {[%emt 0:03:06]} (22. Kh1 $14 {keeps the upper hand.}) 22... Qb4 {[%emt 0:01:32]} 23. Nf3 {[%emt 0:02:01]} Nc4 $1 {[%emt 0:05:29]} (23... Qxb2 24. Rab1 Qxa2 25. Rxb6 $18) 24. Rf2 {[%emt 0:08:42]} Nd6 {[%emt 0:03:48][%cal Oe7e4]} (24... Nxb2 25. a3 (25. Rb1 Nxd3 26. Rxb4 Nxf2 $11) 25... Qb3 26. Rb1 $16) 25. Nxh5 {[%emt 0:04:27]} Ne4 {[%emt 0:02:36]} 26. Rc2 {[%emt 0:01:31]} Ng5 {[%emt 0:02:51] [#]} (26... Bxh5 $17 27. Qxh5 Ng5) 27. Nxf6+ $1 {[%emt 0:04:13]} gxf6 {[%emt 0:00:04]} 28. Nxg5 {[%emt 0:00:06]} fxg5 {[%emt 0:02:38]} 29. Qxg5+ {[%emt 0:00:05]} Kh8 $2 {[%emt 0:01:22]} (29... Rg7 $11 {and Black has nothing to worry.} 30. Qf4 Rf7) 30. Qh4+ $2 {[%emt 0:02:23]} ({Only move:} 30. Qf4 $1 $18) 30... Nh7 $2 {[%emt 0:01:15]} (30... Rh7 $11 {and Black stays safe.} 31. Qf6+ Kg8) 31. f6 $18 {[%emt 0:00:32]} Re4 {[%emt 0:01:17]} 32. Bxe4 {[%emt 0:00:38][%csl Ge4][%cal Rh4h7]} (32. Qh6 $6 Qf8 33. Qxf8+ Nxf8 34. Bxe4 dxe4 $14) 32... Qxd4+ {[%emt 0:00:03]} (32... dxe4 $142 33. Qxe4 (33. Qh6 Qf8 $14) 33... Bf7) 33. Rf2 {[%emt 0:00:55][%csl Ge4][%cal Rh4h7]} Qxe4 {[%emt 0:00:09] [#]} 34. Qg3 $40 {[%emt 0:00:44][%mdl 128] Black is in trouble. The board is on fire.} ({Not} 34. Qh6 Qg6 35. Qf4 Bf7 $16) (34. Rf4 $1 $18 {[%cal Rf4e4]} Qg6 35. Re1) 34... Qg6 $16 {[%emt 0:00:28]} 35. Qc7 {[%emt 0:00:32] White is more active.} Qf7 {[%emt 0:01:13]} (35... Nxf6 $2 36. Qxb7 Rd8 37. Qe7 $18) (35... Ng5 $16 36. Rf5 Nxh3+ 37. Kh1 {[#]} Bf7 $1) 36. Qb6 $18 {[%emt 0:00:23]} Ra6 {[%emt 0:02:32]} (36... Nxf6 $2 37. Raf1 Nd7 38. Qxb7 $18 (38. Rxf7 Nxb6 39. Rxb7 Nd7 $14)) 37. Qd8 {[%emt 0:00:39]} Qd7 $2 {[%emt 0:01:02]} (37... Qg8 38. Rf4 Bf7) 38. Qb8 {[%emt 0:00:10] f7 would kill now.} Ng5 {[%emt 0:00:29]} 39. Re1 {[%emt 0:00:26]} Ne4 {[%emt 0:00:52]} 40. f7 {[%emt 0:00:12][%mdl 64] Pin.  Weighted Error Value: White=0.26 (precise) /Black=0.71} 1-0

[Event "HSK GM Invitational 2022"]
[Site "Hamburg"]
[Date "2022.05.20"]
[Round "1.5"]
[White "Kotronias, Vasilios"]
[Black "Koellner, Ruben Gideon"]
[Result "1-0"]
[ECO "C70"]
[WhiteElo "2465"]
[BlackElo "2440"]
[Annotator "TA"]
[PlyCount "83"]
[EventDate "2022.05.20"]
[EventType "tourn"]
[EventCountry "GER"]
[SourceTitle "playchess.com"]
[Source "ChessBase"]
[SourceQuality "1"]
[TimeControl "40/5400+30:1800+30"]

{[%evp 9,83,23,38,25,25,30,37,34,25,20,12,18,17,25,24,20,12,24,33,20,25,13,29,19,19,19,24,14,21,16,23,18,20,18,18,11,26,18,46,15,18,16,20,15,22,13,20,-10,-14,-25,0,0,0,0,0,14,190,193,170,200,277,255,627,579,653,646,610,574,707,707,5214,1789,1022,873,29990,29991]} 1. e4 {[%emt 0:00:08]} e5 {[%emt 0:00:06]} 2. Nf3 {[%emt 0:00:11]} Nc6 {[%emt 0:00:06]} 3. Bb5 {[%emt 0:00:11][%cal Bf1b5,Bb5a4,Ba4b3][%mdl 32]} g6 {[%emt 0:00:09]} 4. c3 {[%emt 0:00:26][%cal Bc2c3,Bc3d4,Bd4d5][%mdl 32]} a6 {[%emt 0:00:14]} 5. Ba4 {[%emt 0:01:52]} Bg7 {[%emt 0:00:21]} 6. d4 {[%emt 0:00:23] C70: Ruy Lopez: 3...a6 4 Ba4, Norwegian and Delayed Schliemann.} exd4 {[%emt 0:00:21]} 7. cxd4 {[%emt 0:00:15]} b5 {[%emt 0:00:11]} 8. Bb3 {[%emt 0:00:29] White is slightly better.} Nge7 {[%emt 0:00:10]} 9. O-O {[%emt 0:00:27]} O-O {[%emt 0:02:09]} 10. d5 {[%emt 0:02:07]} Na5 {[%emt 0:00:19]} 11. Bd2 {[%emt 0:00:14]} Nxb3 {[%emt 0:00:09]} 12. Qxb3 {[%emt 0:00:07]} c5 {[%emt 0:00:48]} 13. Bc3 {[%emt 0:00:32] Bxg7 is the strong threat.} d6 {[%emt 0:01:38]} 14. Bxg7 {[%emt 0:00:17]} Kxg7 {[%emt 0:00:08]} 15. Nbd2 {[%emt 0:14:55]} f6 {[%emt 0:01:01] [#]} 16. Rfe1 $146 {[%emt 0:00:32]} ({Predecessor:} 16. Qc3 a5 17. b3 h6 18. a3 b4 19. Qc2 Ba6 20. Rfe1 Qd7 21. Ra2 Ra7 22. h3 {0-1 (43) Raja,H (2432)-Mikhalevski,V (2580) Budapest 2019}) 16... g5 {[%emt 0:04:20]} 17. Nf1 {[%emt 0:01:02]} Ng6 {[%emt 0:02:01]} 18. Ng3 {[%emt 0:03:20]} Ne5 {[%emt 0:06:06]} 19. Nd2 {[%emt 0:10:34][%cal Bf3d2,Bd2f1,Bf1e3,Be3f5][%mdl 32]} Kh8 {[%emt 0:03:12]} 20. Qc2 {[%emt 0:00:49]} Bd7 {[%emt 0:09:27]} 21. Ndf1 {[%emt 0:02:59]} a5 {[%emt 0:01:44]} 22. Ne3 {[%emt 0:00:58]} b4 {[%emt 0:05:33]} 23. Nef5 {[%emt 0:05:57]} Bb5 {[%emt 0:04:04]} 24. Rad1 {[%emt 0:01:41]} a4 {[%emt 0:01:55]} 25. h4 {[%emt 0:02:45]} a3 {[%emt 0:02:28]} 26. b3 {[%emt 0:05:19]} Ra7 {[%emt 0:02:28]} 27. h5 {[%emt 0:17:38]} Qb6 {[%emt 0:05:36]} 28. h6 {[%emt 0:04:07]} c4 {[%emt 0:16:39] Strongly threatening ...cxb3.} 29. Rd4 {[%emt 0:00:06]} (29. Nd4 $5 {[%cal Rd4b5]}) 29... Rc7 {[%emt 0:02:13]} 30. bxc4 {[%emt 0:00:37]} Bxc4 {[%emt 0:10:21]} 31. Qd2 {[%emt 0:00:04]} Rb8 {[%emt 0:02:45]} 32. Nh5 {[%emt 0:05:30][%cal Bg3h5,Bh5f6,Bf6g4][%mdl 32]} b3 $2 {[%emt 0:07:07] This costs Black the game.} (32... Bxa2 $1 $11 {and Black stays safe.} 33. Qxa2 Qa7) 33. axb3 $18 {[%emt 0:00:51]} Bxb3 {[%emt 0:04:04]} 34. Nxf6 {[%emt 0:00:46]} Nf7 {[%emt 0:00:43]} 35. Ng4 {[%emt 0:06:40] Black must now prevent e5. Pair of Knights!} Qc5 $2 {[%emt 0:01:40]} (35... a2 36. Nge3 Ne5) 36. Ra1 {[%emt 0:01:22][%cal Be1a1,Ba1a2,Ba2a7][%mdl 32]} a2 {[%emt 0:02:28]} 37. Qb2 {[%emt 0:00:22] White threatens Rb4+ and mate.} Qc3 {[%emt 0:01:13] Inhibits Rb4.} 38. Rxa2 {[%emt 0:01:43][%cal Od4b4] Hoping for Rb4!} Ne5 {[%emt 0:02:33]} 39. Nxe5 {[%emt 0:00:40]} dxe5 {[%emt 0:00:56] [#]} 40. Qxc3 {[%emt 0:00:18]} (40. Rb4 $142 $3 {[%mdl 512]} Rd8 (40... Qxb4 41. Qxe5+) 41. Qxb3 Qxb3 42. Rxb3) 40... Rxc3 {[%emt 0:00:19] [#]} 41. Rb4 $3 {[%emt 0:30:07][%mdl 512]} Rbc8 {[%emt 0:30:28]} (41... Rcc8 42. Rxb8) 42. Ra7 {[%emt 0:01:27] Weighted Error Value: White=0.04 (flawless) /Black=0.46} 1-0

[Event "HSK GM Invitational 2022"]
[Site "Hamburg"]
[Date "2022.05.21"]
[Round "2.1"]
[White "Prohaszka, Peter"]
[Black "Koellner, Ruben Gideon"]
[Result "1/2-1/2"]
[ECO "D36"]
[WhiteElo "2579"]
[BlackElo "2440"]
[Annotator "TA"]
[PlyCount "154"]
[EventDate "2022.05.20"]
[EventType "tourn"]
[EventCountry "GER"]
[SourceTitle "playchess.com"]
[Source "ChessBase"]
[SourceQuality "1"]
[TimeControl "40/5400+30:1800+30"]

{[%evp 24,154,47,47,52,31,35,30,36,31,34,29,29,24,25,15,17,18,35,37,36,27,30,30,34,12,18,20,37,20,39,36,36,31,44,37,39,39,39,35,39,7,52,28,32,22,26,1,36,37,37,37,37,40,159,20,20,17,26,0,0,0,0,0,0,0,0,0,0,0,0,0,0,0,0,0,0,0,0,0,0,0,0,0,0,0,0,0,0,0,0,0,0,0,0,0,0,0,0,0,0,0,0,0,0,0,0,0,0,0,0,0,0,0,0,0,0,0,0,0,0,0,0,0,0,0,0,0,0,0,0,0,0]} 1. d4 {[%emt 0:00:03]} d5 {[%emt 0:01:30]} 2. c4 {[%emt 0:00:23]} e6 {[%emt 0:00:18]} 3. Nc3 {[%emt 0:00:45]} Nf6 {[%emt 0:00:11]} 4. cxd5 {[%emt 0:00:17]} exd5 {[%emt 0:00:07]} 5. Bg5 {[%emt 0:00:09]} Be7 {[%emt 0:00:07]} 6. e3 {[%emt 0:00:10]} c6 {[%emt 0:00:07]} 7. Bd3 {[%emt 0:00:20]} Nbd7 {[%emt 0:01:21]} 8. h3 {[%emt 0:00:35]} O-O {[%emt 0:00:54]} 9. Qc2 {[%emt 0:00:32]} Re8 {[%emt 0:00:37]} 10. Nf3 {[%emt 0:07:06]} Nf8 {[%emt 0:03:20]} 11. O-O {[%emt 0:02:05]} Ne4 {[%emt 0:15:56]} 12. Bf4 {[%emt 0:05:14]} Nxc3 {[%emt 0:06:47]} 13. bxc3 {[%emt 0:00:38]} Ng6 {[%emt 0:00:56] D36: Queen's Gambit Declined: Exchange Variation: Main line (5 Bg5 c6 6 Qc2).} 14. Ne5 {[%emt 0:11:28]} Bd6 {[%emt 0:04:19]} 15. Nxg6 {[%emt 0:01:40]} hxg6 {[%emt 0:00:16] White has an edge.} 16. Bxd6 {[%emt 0:00:11]} Qxd6 {[%emt 0:00:05] [#]} 17. c4 $146 {[%emt 0:01:00]} ({Predecessor:} 17. a4 Be6 18. c4 dxc4 19. Bxc4 Rac8 20. Bxe6 Rxe6 21. Rfd1 Qd5 22. Rac1 b6 23. Rd3 {½-½ (69) Alterman,B-Shalimov,V Soviet Union 1986}) 17... dxc4 {[%emt 0:01:25]} 18. Bxc4 {[%emt 0:12:59]} Bf5 {[%emt 0:02:12]} 19. Bd3 {[%emt 0:00:18]} Bxd3 {[%emt 0:05:23]} 20. Qxd3 {[%emt 0:00:08]} Rac8 {[%emt 0:14:29]} 21. Rfc1 {[%emt 0:02:15]} Rc7 {[%emt 0:06:30]} 22. Rc4 {[%emt 0:08:44]} Rec8 {[%emt 0:06:33]} 23. Rac1 {[%emt 0:02:00]} b6 {[%emt 0:06:04]} 24. R4c3 {[%emt 0:04:23]} c5 {[%emt 0:06:34]} 25. Qa6 {[%emt 0:01:12]} Qd5 {[%emt 0:01:33]} 26. a4 {[%emt 0:06:09]} Kh7 {[%emt 0:06:08]} 27. dxc5 {[%emt 0:15:53]} bxc5 {[%emt 0:00:19]} 28. Rc4 {[%emt 0:02:04]} Qc6 {[%emt 0:01:34]} 29. Qa5 {[%emt 0:00:27]} Qd5 {[%emt 0:00:25]} 30. Qc3 {[%emt 0:01:59]} Kg8 {[%emt 0:00:37]} 31. e4 {[%emt 0:01:33]} Qe6 {[%emt 0:01:12]} 32. Qe3 {[%emt 0:00:05][%cal Rc4c5]} (32. Kh2 {is more complex.} g5 33. a5 Qe7 34. g3) 32... Qe7 {[%emt 0:01:14]} 33. g3 {[%emt 0:01:11]} Rc6 {[%emt 0:00:31]} 34. h4 {[%emt 0:03:28]} Re6 {[%emt 0:02:11]} 35. a5 {[%emt 0:02:05][%cal Rc4c5]} Re8 {[%emt 0:01:37]} 36. Qxc5 {[%emt 0:02:30]} Qxc5 {[%emt 0:01:13]} 37. Rxc5 {[%emt 0:00:01] aiming for f3.} Rxe4 $14 {[%emt 0:00:10][%mdl 4096] Endgame KRR-KRR} 38. Rc7 {[%emt 0:00:08]} R4e7 {[%emt 0:03:03] [#]} (38... R8e7 $14) 39. Rxe7 {[%emt 0:07:00] White is more active.} (39. a6 $1 $16) 39... Rxe7 $16 {[%emt 0:00:06] KR-KR} 40. Rc8+ {[%emt 0:00:02]} Kh7 {[%emt 0:00:06]} 41. f4 {[%emt 0:31:18]} f6 {[%emt 0:32:21] The position is equal.} 42. Kf2 {[%emt 0:00:00]} g5 {[%emt 0:00:00]} 43. hxg5 {[%emt 0:00:00]} fxg5 {[%emt 0:00:00]} 44. Kf3 {[%emt 0:00:00]} (44. Rc6 $5 {[%cal Rf4g5]}) 44... gxf4 {[%emt 0:00:00]} 45. Kxf4 {[%emt 0:00:00]} Rf7+ {[%emt 0:00:00]} 46. Kg5 {[%emt 0:00:00]} Rf6 {[%emt 0:00:00] Inhibits Rc6.} 47. g4 {[%emt 0:00:00]} Rg6+ {[%emt 0:00:00]} 48. Kh4 {[%emt 0:00:00]} Rd6 {[%emt 0:00:00]} 49. Rc7 {[%emt 0:00:00]} Ra6 {[%emt 0:00:00]} 50. Rc5 {[%emt 0:00:00]} Kg6 {[%emt 0:00:00]} 51. Kg3 {[%emt 0:00:00]} Rf6 {[%emt 0:00:00]} 52. Rb5 {[%emt 0:00:00]} Rf7 {[%emt 0:00:00]} 53. Rd5 {[%emt 0:00:00]} Rf6 {[%emt 0:00:00]} 54. Rc5 {[%emt 0:00:00]} Rf7 {[%emt 0:00:00]} 55. Kh4 {[%emt 0:00:00]} Rf6 {[%emt 0:00:00]} 56. Rd5 {[%emt 0:00:18]} Rc6 {[%emt 0:00:00]} 57. Rg5+ {[%emt 0:01:33]} Kh6 {[%emt 0:00:00]} 58. Rf5 {[%emt 0:00:40]} Kg6 {[%emt 0:00:00]} 59. Re5 {[%emt 0:01:02]} Rd6 {[%emt 0:00:00]} 60. Rc5 {[%emt 0:01:29]} Re6 {[%emt 0:00:00]} 61. Rf5 {[%emt 0:02:58]} Rc6 {[%emt 0:00:00]} 62. Rb5 {[%emt 0:01:03]} Re6 {[%emt 0:00:00]} 63. Kg3 {[%emt 0:00:05]} Rf6 {[%emt 0:00:00]} 64. Rc5 {[%emt 0:00:11]} Rf7 {[%emt 0:00:00]} 65. Rc6+ {[%emt 0:00:35]} Kg5 {[%emt 0:00:00]} 66. Rd6 {[%emt 0:00:35]} Rc7 {[%emt 0:00:00]} 67. Rd5+ {[%emt 0:01:07]} Kg6 {[%emt 0:00:37]} 68. Kf3 {[%emt 0:00:01]} Rc3+ {[%emt 0:01:09]} 69. Kf2 {[%emt 0:00:01]} Rc4 {[%emt 0:01:27]} 70. Kf3 {[%emt 0:01:47]} Rc3+ {[%emt 0:00:05]} 71. Ke2 {[%emt 0:00:50]} Rc4 {[%emt 0:00:28]} 72. Rd7 {[%emt 0:00:33]} Rxg4 {[%emt 0:00:50]} 73. Rxa7 {[%emt 0:00:04]} Ra4 {[%emt 0:00:47]} 74. Kd3 {[%emt 0:00:01]} Kf6 {[%emt 0:01:06]} 75. Ra6+ {[%emt 0:00:25]} Kf5 {[%emt 0:00:30]} 76. Ra8 {[%emt 0:00:18]} g5 {[%emt 0:00:20]} 77. Kc3 {[%emt 0:01:17]} Ke5 {[%emt 0:11:20] Weighted Error Value: White=0.12 (very precise) /Black=0.10 (very precise)} 1/2-1/2